Workbook

Sheet Sheet1
A1: 2019年肥西县公开招聘政府购买服务人员招聘公告（四）面试及综合成绩表
A2: 序号 | B2: 岗位名称 | C2: 性别 | D2: 准考证号(笔试) | E2: 考场 | F2: 笔试成绩 | G2: 面试室 | H2: 面试\路考抽签号 | I2: 面试\路考成绩 | J2: 合成成绩 | K2: 备注
A3: 1 | B3: 工作人员D | C3: 男 | D3: 191218572 | E3: 第20考场 | F3: 56.6 | G3: \ | H3: \ | I3: \ | J3: \ | K3: 缺考
A4: 2 | B4: 工作人员D | C4: 男 | D4: 191218167 | E4: 第6考场 | F4: 50.9 | G4: \ | H4: \ | I4: \ | J4: \ | K4: 缺考
A5: 3 | B5: 工作人员C | C5: 女 | D5: 191218642 | E5: 第22考场 | F5: 58.3 | G5: \ | H5: \ | I5: \ | J5: \ | K5: 缺考
A6: 4 | B6: 工作人员B | C6: 男 | D6: 191218527 | E6: 第18考场 | F6: 50 | G6: \ | H6: \ | I6: \ | J6: \ | K6: 缺考
A7: 5 | B7: 工作人员B | C7: 女 | D7: 191218439 | E7: 第15考场 | F7: 45.8 | G7: \ | H7: \ | I7: \ | J7: \ | K7: 缺考
A8: 6 | B8: 驾驶员 | C8: 男 | D8: 191218619 | E8: 第21考场 | F8: 99 | G8: 路考 | H8: 1 | I8: 94 | J8: =F8*0.6+I8*0.4 -> 97.00
A9: 7 | B9: 驾驶员 | C9: 男 | D9: 191218270 | E9: 第9考场 | F9: 91 | G9: 路考 | H9: 2 | I9: 90 | J9: =F9*0.6+I9*0.4 -> 90.60
A10: 8 | B10: 驾驶员 | C10: 男 | D10: 191218430 | E10: 第15考场 | F10: 99 | G10: 路考 | H10: 3 | I10: 92 | J10: =F10*0.6+I10*0.4 -> 96.20
A11: 9 | B11: 驾驶员 | C11: 男 | D11: 191218388 | E11: 第13考场 | F11: 91 | G11: 路考 | H11: 4 | I11: 92 | J11: =F11*0.6+I11*0.4 -> 91.40
A12: 10 | B12: 监督稽查科工作人员 | C12: 女 | D12: 191218545 | E12: 第19考场 | F12: 54.9 | G12: 面试室二 | H12: 1 | I12: 73.8 | J12: =F12*0.6+I12*0.4 -> 62.46
A13: 11 | B13: 监督稽查科工作人员 | C13: 男 | D13: 191218581 | E13: 第20考场 | F13: 61.3 | G13: 面试室二 | H13: 2 | I13: 79.2 | J13: =F13*0.6+I13*0.4 -> 68.46
A14: 12 | B14: 工作人员E | C14: 女 | D14: 191218493 | E14: 第17考场 | F14: 52.1 | G14: 面试室二 | H14: 3 | I14: 78.6 | J14: =F14*0.6+I14*0.4 -> 62.70
A15: 13 | B15: 工作人员E | C15: 女 | D15: 191218583 | E15: 第20考场 | F15: 52.6 | G15: 面试室二 | H15: 5 | I15: 74.9 | J15: =F15*0.6+I15*0.4 -> 61.52
A16: 14 | B16: 工作人员C | C16: 女 | D16: 191218165 | E16: 第6考场 | F16: 59.2 | G16: 面试室二 | H16: 6 | I16: 73.6 | J16: =F16*0.6+I16*0.4 -> 64.96
A17: 15 | B17: 工作人员E | C17: 男 | D17: 191218353 | E17: 第12考场 | F17: 51.2 | G17: 面试室二 | H17: 7 | I17: 71.8 | J17: =F17*0.6+I17*0.4 -> 59.44
A18: 16 | B18: 工作人员D | C18: 男 | D18: 191218562 | E18: 第19考场 | F18: 53.3 | G18: 面试室二 | H18: 8 | I18: 77.2 | J18: =F18*0.6+I18*0.4 -> 62.86
A19: 17 | B19: 工作人员D | C19: 男 | D19: 191218321 | E19: 第11考场 | F19: 52.1 | G19: 面试室二 | H19: 9 | I19: 74.4 | J19: =F19*0.6+I19*0.4 -> 61.02
A20: 18 | B20: 工作人员D | C20: 女 | D20: 191218637 | E20: 第22考场 | F20: 51.2 | G20: 面试室二 | H20: 10 | I20: 77.92 | J20: =F20*0.6+I20*0.4 -> 61.89
A21: 19 | B21: 工作人员E | C21: 男 | D21: 191218326 | E21: 第11考场 | F21: 51.2 | G21: 面试室二 | H21: 11 | I21: 76.5 | J21: =F21*0.6+I21*0.4 -> 61.32
A22: 20 | B22: 监督稽查科工作人员 | C22: 女 | D22: 191218262 | E22: 第9考场 | F22: 49.4 | G22: 面试室二 | H22: 12 | I22: 72.6 | J22: =F22*0.6+I22*0.4 -> 58.68
A23: 21 | B23: 工作人员C | C23: 女 | D23: 191218576 | E23: 第20考场 | F23: 59 | G23: 面试室二 | H23: 14 | I23: 78.1 | J23: =F23*0.6+I23*0.4 -> 66.64
A24: 22 | B24: 工作人员D | C24: 男 | D24: 191218194 | E24: 第7考场 | F24: 55.9 | G24: 面试室二 | H24: 15 | I24: 74.1 | J24: =F24*0.6+I24*0.4 -> 63.18
A25: 23 | B25: 工作人员C | C25: 女 | D25: 191218044 | E25: 第2考场 | F25: 63.2 | G25: 面试室二 | H25: 16 | I25: 75.66 | J25: =F25*0.6+I25*0.4 -> 68.18
A26: 24 | B26: 工作人员C | C26: 女 | D26: 191218143 | E26: 第5考场 | F26: 62.7 | G26: 面试室二 | H26: 17 | I26: 76.92 | J26: =F26*0.6+I26*0.4 -> 68.39
A27: 25 | B27: 工作人员E | C27: 男 | D27: 191218265 | E27: 第9考场 | F27: 51.8 | G27: 面试室二 | H27: 18 | I27: 73.7 | J27: =F27*0.6+I27*0.4 -> 60.56
A28: 26 | B28: 工作人员C | C28: 女 | D28: 191218610 | E28: 第21考场 | F28: 66.7 | G28: 面试室二 | H28: 19 | I28: 75.8 | J28: =F28*0.6+I28*0.4 -> 70.34
A29: 27 | B29: 工作人员E | C29: 男 | D29: 191218519 | E29: 第18考场 | F29: 52.8 | G29: 面试室二 | H29: 21 | I29: 77.08 | J29: =F29*0.6+I29*0.4 -> 62.51
A30: 28 | B30: 工作人员B | C30: 女 | D30: 191218511 | E30: 第18考场 | F30: 63 | G30: 面试室一 | H30: 2 | I30: 75.4 | J30: =F30*0.6+I30*0.4 -> 67.96
A31: 29 | B31: 工作人员A | C31: 女 | D31: 191218160 | E31: 第6考场 | F31: 64.8 | G31: 面试室一 | H31: 3 | I31: 78.4 | J31: =F31*0.6+I31*0.4 -> 70.24
A32: 30 | B32: 工作人员A | C32: 男 | D32: 191218263 | E32: 第9考场 | F32: 79.7 | G32: 面试室一 | H32: 4 | I32: 78.9 | J32: =F32*0.6+I32*0.4 -> 79.38
A33: 31 | B33: 工作人员B | C33: 女 | D33: 191218459 | E33: 第16考场 | F33: 45.7 | G33: 面试室一 | H33: 6 | I33: 75.8 | J33: =F33*0.6+I33*0.4 -> 57.74
A34: 32 | B34: 工作人员B | C34: 女 | D34: 191218210 | E34: 第7考场 | F34: 50.3 | G34: 面试室一 | H34: 7 | I34: 80.2 | J34: =F34*0.6+I34*0.4 -> 62.26
A35: 33 | B35: 工作人员B | C35: 女 | D35: 191218187 | E35: 第7考场 | F35: 46.5 | G35: 面试室一 | H35: 8 | I35: 72.7 | J35: =F35*0.6+I35*0.4 -> 56.98
A36: 34 | B36: 工作人员A | C36: 女 | D36: 191218350 | E36: 第12考场 | F36: 63.1 | G36: 面试室一 | H36: 9 | I36: 77.6 | J36: =F36*0.6+I36*0.4 -> 68.90
A37: 35 | B37: 工作人员A | C37: 女 | D37: 191218050 | E37: 第2考场 | F37: 62.9 | G37: 面试室一 | H37: 10 | I37: 75.2 | J37: =F37*0.6+I37*0.4 -> 67.82
A38: 36 | B38: 工作人员A | C38: 女 | D38: 191218648 | E38: 第22考场 | F38: 69.5 | G38: 面试室一 | H38: 11 | I38: 79.9 | J38: =F38*0.6+I38*0.4 -> 73.66
A39: 37 | B39: 工作人员A | C39: 女 | D39: 191218373 | E39: 第13考场 | F39: 64.2 | G39: 面试室一 | H39: 12 | I39: 73 | J39: =F39*0.6+I39*0.4 -> 67.72
A40: 38 | B40: 工作人员A | C40: 女 | D40: 191218571 | E40: 第20考场 | F40: 68.3 | G40: 面试室一 | H40: 13 | I40: 77.5 | J40: =F40*0.6+I40*0.4 -> 71.98
A41: 39 | B41: 工作人员A | C41: 女 | D41: 191218482 | E41: 第17考场 | F41: 61.3 | G41: 面试室一 | H41: 14 | I41: 78.7 | J41: =F41*0.6+I41*0.4 -> 68.26
A42: 40 | B42: 工作人员B | C42: 男 | D42: 191218453 | E42: 第16考场 | F42: 61.9 | G42: 面试室一 | H42: 15 | I42: 80.2 | J42: =F42*0.6+I42*0.4 -> 69.22
A43: 41 | B43: 办公室工作人员（审批服务科） | C43: 女 | D43: 191218095 | E43: 第4考场 | F43: 55.8 | G43: 面试室一 | H43: 16 | I43: 80.6 | J43: =F43*0.6+I43*0.4 -> 65.72
A44: 42 | B44: 工作人员A | C44: 女 | D44: 191218185 | E44: 第7考场 | F44: 61 | G44: 面试室一 | H44: 17 | I44: 78.6 | J44: =F44*0.6+I44*0.4 -> 68.04
A45: 43 | B45: 工作人员B | C45: 女 | D45: 191218247 | E45: 第9考场 | F45: 60.7 | G45: 面试室一 | H45: 18 | I45: 75.8 | J45: =F45*0.6+I45*0.4 -> 66.74
A46: 44 | B46: 办公室工作人员（审批服务科） | C46: 女 | D46: 191218537 | E46: 第18考场 | F46: 57.6 | G46: 面试室一 | H46: 19 | I46: 74.8 | J46: =F46*0.6+I46*0.4 -> 64.48
A47: 45 | B47: 办公室工作人员（审批服务科） | C47: 男 | D47: 191218615 | E47: 第21考场 | F47: 53.1 | G47: 面试室一 | H47: 20 | I47: 72.4 | J47: =F47*0.6+I47*0.4 -> 60.82
A48: 46 | B48: 工作人员B | C48: 女 | D48: 191218621 | E48: 第21考场 | F48: 56 | G48: 面试室一 | H48: 21 | I48: 73.6 | J48: =F48*0.6+I48*0.4 -> 63.04
